fUSD/lending_fUSD_20260107
["ID","MTS","AMOUNT","RATE_DAILY","PERIOD"]
[400780276,1767826249210,-500.0,0.00017989,2]
[400780278,1767826249222,-500.0,0.00017989,2]
[400780281,1767826249237,-1455.64956121,0.0001799,2]
[400780283,1767826249248,-1455.64956121,0.0001799,2]
[400780285,1767826249258,-300.0,0.00017991,2]
[400780287,1767826249268,-1000.0,0.00017997,2]
[400780289,1767826249279,-151.0,0.00017997,2]
[400780291,1767826249290,-500.0,0.00017998,2]
[400780293,1767826249300,-500.0,0.00017998,2]
[400780295,1767826249311,-500.0,0.00017998,2]
[400780297,1767826249320,-500.0,0.00017998,2]
[400780300,1767826249331,-23466.40119295,0.00017999,2]
[400780302,1767826249340,-500.0,0.00017999,2]
[400780304,1767826249350,-500.0,0.00017999,2]
[400780306,1767826249360,-500.0,0.00017999,2]
[400780308,1767826249370,-500.0,0.00017999,2]
[400780311,1767826249389,-500.0,0.00017999,2]
[400780313,1767826249401,-500.0,0.00017999,2]
[400780315,1767826249411,-500.0,0.00017999,2]
[400780318,1767826249423,-500.0,0.00017999,2]
[400780320,1767826249434,-160.47652128,0.00017999,2]
[400780322,1767826249445,-300.0,0.00017999,2]
[400780324,1767826249456,-395.10952792,0.00017999,2]
[400780326,1767826249466,-666.0,0.00017999,2]
[400780329,1767826249477,-300.0,0.00017999,2]
[400780331,1767826249487,-419.33594592,0.00017999,2]
[400780333,1767826249498,-500.0,0.00017999,2]
[400780335,1767826249508,-300.0,0.00017999,2]
[400780337,1767826249519,-541.99903097,0.00017999,2]
[400780339,1767826249530,-666.0,0.00017999,2]
[400780342,1767826249542,-300.0,0.00017999,2]
[400780344,1767826249552,-174.14927633,0.00017999,2]
[400780346,1767826249563,-300.0,0.00017999,2]
[400780348,1767826249574,-666.0,0.00017999,2]
[400780350,1767826249585,-300.0,0.00017999,2]
[400780352,1767826249596,-300.0,0.00017999,2]
[400780355,1767826249606,-5826.21400436,0.00017999,2]
[400780357,1767826249617,-168.0,0.00017999,2]
[400780359,1767826249628,-4451156.94464173,0.00018,2]
[400780363,1767826249652,-691.00375427,0.00018,2]
[400780365,1767826249664,-261.039,0.00018,2]
[400780367,1767826249677,-2978.91,0.00018,2]
[400780371,1767826249702,-1325.12135423,0.00016438,2]
[400780373,1767826249713,-1325.12135423,0.00016438,2]
[400780375,1767826249723,-1491.53358354,0.00018,2]
[400780378,1767826249740,-4815.271,0.00018,2]
[400780381,1767826249754,-7294.76997,0.00018,2]
[400780383,1767826249767,-5699.00000005,0.00018,2]
[400780386,1767826249781,-31340.76000001,0.00018,2]
[400780388,1767826249794,-2149.884,0.00018,2]
[400780390,1767826249807,-4318.269725,0.00018,2]
[400780393,1767826249820,-3988.58000006,0.00018,2]
[400780399,1767826249863,-1325.12135423,0.00016438,2]
[400780401,1767826249874,-1325.12135423,0.00016438,2]
[400780403,1767826249884,-4739.00514984,0.00018,2]
[400780464,1767826250459,-446.54502388,0.00013887,2]
[400780511,1767826250883,-553.45497612,0.00013887,2]
[400780513,1767826250893,-405.91758139,0.00016438,2]
[400780515,1767826250905,-919.20377284,0.00016438,2]
[400780517,1767826250915,-1325.12135423,0.00016438,2]
[400780519,1767826250925,-1325.12135423,0.00016438,2]
[400780521,1767826250934,-1325.12135423,0.00016438,2]
[400780523,1767826250944,-1325.12135423,0.00016438,2]
[400780526,1767826250954,-1325.12135423,0.00016438,2]
[400780528,1767826250963,-1325.12135423,0.00016438,2]
[400780529,1767826250972,-114771.2716586,0.00018,2]
[400780532,1767826250984,-2732.7300008,0.00018,2]
[400780534,1767826250995,-801.04957216,0.00018,2]
[400780536,1767826251006,-1588.82115271,0.00018,2]
[400780538,1767826251017,-1207.99022227,0.00018,2]
[400780541,1767826251029,-477.67810179,0.00018,2]
[400780543,1767826251042,-394.95440656,0.00018,2]
[400780547,1767826251077,-319.63606211,0.00018,2]
[400780550,1767826251088,-365.656,0.00018,2]
[400780552,1767826251100,-424.13260555,0.00018,2]
[400780554,1767826251111,-443.58598797,0.00018,2]
[400780556,1767826251121,-700.0,0.00018,2]
[400780564,1767826251185,-500.0,0.00018,2]
[400780634,1767826251957,-1.7e-07,0.00018,2]
[400780636,1767826251968,-4309.56204036,0.00018,2]
[400780639,1767826251980,-467.97099624,0.00018,2]
[400780641,1767826251991,-801.50537532,0.00018,2]
[400780730,1767826252807,-614.02345664,0.00017766,2]
[400780732,1767826252819,-385.97654336,0.00017766,2]
[400780734,1767826252828,-778.50605733,0.00017766,2]
[400780737,1767826252839,-221.49394267,0.00017766,2]
[400780739,1767826252848,-67.2747831,0.00018,2]
[400780741,1767826252859,-2100.0,0.00018,2]
[400780757,1767826252999,-4948.15896528,0.00018,2]
[400780759,1767826253010,-2209.42411461,0.00018,2]
[400780924,1767826254662,10000.01,0.00013887,2]
[400780928,1767826254691,446.1746,0.00013887,2]
[400782513,1767826271108,-2500.0,0.00013887,2]
[400782573,1767826279559,440.89175955,0.00013793,2]
[400782574,1767826285310,-240.89710999,0.00013994,2]
[400782575,1767826286555,-259.10289001,0.00013994,2]
[400782576,1767826286589,-500.0,0.00013994,2]
[400782577,1767826286621,-420.4969783,0.00013994,2]
[400782578,1767826301182,-564.0,0.00014013,2]
[400782579,1767826303246,-564.0,0.00014068,2]
[400782580,1767826303271,-472.70790093,0.00014123,2]
[400782581,1767826307143,500.0,0.00013994,2]
[400782582,1767826307373,513.96214798,0.00013994,2]
[400782583,1767826312070,500.0,0.00013994,2]
[400782584,1767826312324,500.0,0.00013994,2]
[400782585,1767826312556,529.68631152,0.00013994,2]
[400782586,1767826316466,-91.29209907,0.00014123,2]
[400782587,1767826318664,-212.39999951,0.00014177,2]
[400782588,1767826321178,-300.0,0.00014177,2]
[400782589,1767826323202,-51.60000049,0.00014177,2]
[400782590,1767826323228,-120.7261078,0.00014232,2]
[400782591,1767826326174,-208.2698907,0.00014232,2]
[400782592,1767826328081,-235.0040015,0.00014232,2]
[400782593,1767826328108,-43.11542803,0.00014287,2]
[400782594,1767826334507,-163.2920989,0.00014287,2]
[400782603,1767826360269,10000.01,0.00013887,2]
[400782604,1767826360304,10000.01,0.00013887,2]
[400782605,1767826360339,3397.1398,0.00013887,2]
[400782606,1767826376291,6602.8702,0.00013792,2]
[400782607,1767826376321,10000.01,0.00013792,2]
[400782608,1767826376351,10000.01,0.00013792,2]
[400782609,1767826376379,10000.01,0.00013792,2]
[400782610,1767826376409,10000.01,0.00013792,2]
[400782611,1767826376440,10000.01,0.00013792,2]
[400782612,1767826376469,10000.01,0.00013792,2]
[400782613,1767826376497,10000.01,0.00013792,2]
[400782614,1767826376526,10000.01,0.00013792,2]
[400782615,1767826376556,10000.01,0.00013792,2]
[400782616,1767826377556,-224.74559645,0.00013792,2]
[400782617,1767826380726,-225.77854245,0.00013792,2]
[400782618,1767826381233,300.0,0.00013791,2]
[400782619,1767826383948,-285.72143961,0.00013792,2]
[400782620,1767826386890,-260.154517,0.00013792,2]
[400782621,1767826389955,-160.30780307,0.00013792,2]
[400782622,1767826393680,-255.0,0.00013792,2]
[400782623,1767826395646,-195.0,0.00013792,2]
[400782624,1767826399449,-376.23133549,0.00013792,2]
[400782625,1767826401436,-250.0,0.00013792,2]
[400782632,1767826430121,3611.06897262,0.00013787,2]
[400782633,1767826441324,300.0,0.00013791,2]
[400782634,1767826441807,150.0,0.00013791,2]
[400782635,1767826452350,555.91785923,0.00013787,2]
[400782642,1767826501243,300.0,0.00013791,2]
[400782643,1767826501288,300.0,0.00013791,2]
[400782644,1767826501396,1200.0,0.00013791,2]
[400782645,1767826513697,500.0,0.00013791,2]
[400782646,1767826513954,227.06348597,0.00013791,2]
[400782647,1767826516367,163.58795866,0.00013791,2]
[400782648,1767826551236,500.0,0.00013791,2]
[400782649,1767826551278,450.86027683,0.00013791,2]
[400782650,1767826551334,236.17659477,0.00013791,2]
[400782651,1767826551387,208.40665339,0.00013791,2]
[400782652,1767826551447,439.75510736,0.00013791,2]
[400782653,1767826562082,300.0,0.00013791,2]
[400782654,1767826606505,171.38154143,0.00013704,2]
[400782655,1767826621858,150.0,0.00013791,2]
[400782656,1767826623519,154.0,0.00013791,2]
[400782657,1767826659499,3692.86052236,0.00013704,2]
[400782658,1767826659528,8397.68711592,0.00013704,2]
[400782659,1767826661520,486.42812687,0.00013704,2]
[400782660,1767826664394,486.42812687,0.00013704,2]
[400782661,1767826681532,300.0,0.00013791,2]
[400782662,1767826715141,329.46663034,0.00013692,2]
[400782663,1767826715174,2170.53336966,0.00013692,2]
[400782664,1767826750008,152.7693013,0.00013704,2]
[400782665,1767826766641,6843.11,0.00013779,2]
[400782666,1767826801287,300.0,0.00013791,2]
[400782667,1767826801334,533.59732904,0.00013791,2]
[400782668,1767826801364,666.40267096,0.00013791,2]
[400782669,1767826801854,150.0,0.00013791,2]
[400782670,1767826805722,264.0,0.00013792,2]
[400782671,1767826807974,965.63,0.00013782,2]
[400782672,1767826808208,965.63,0.00013782,2]
[400782673,1767826817178,6988.34732904,0.00013704,2]
[400782674,1767826817207,10000.01,0.00013704,2]
[400782675,1767826817234,313.77953593,0.00013704,2]
[400782676,1767826824636,429.08917318,0.00013704,2]
[400782677,1767826843047,2500.0,0.00013692,2]
[400782678,1767826857607,212.08665142,0.00013792,2]
[400782679,1767826857783,212.08665142,0.00013792,2]
[400782680,1767826857830,269.87428179,0.00013792,2]
[400782681,1767826862515,500.0,0.00013791,2]
[400782682,1767826862766,524.2180077,0.00013791,2]
[400782683,1767826894219,183.159,0.00013516,2]
[400782684,1767826894260,2457.424,0.00013516,2]
[400782685,1767826921533,300.0,0.00013791,2]
[400782686,1767826921586,2098.29269856,0.00013791,2]
[400782687,1767826921615,10000.01,0.00013791,2]
[400782688,1767826921642,10000.01,0.00013791,2]
[400782689,1767826921668,1368.08849439,0.00013791,2]
[400782690,1767826925337,200.0,0.00013784,2]
[400782691,1767826931579,500.0,0.00013784,2]
[400782692,1767826932228,500.0,0.00013784,2]
[400782693,1767826932864,500.0,0.00013784,2]
[400782694,1767826933470,500.0,0.00013784,2]
[400782695,1767826934093,500.0,0.00013784,2]
[400782696,1767826934697,500.0,0.00013784,2]
[400782697,1767826935312,280.34420165,0.00013784,2]
[400782698,1767826935934,151.0,0.00013784,2]
[400782699,1767826937072,151.0,0.00013784,2]
[400782700,1767826938852,151.0,0.00013784,2]
[400782701,1767826938970,151.0,0.00013784,2]
[400782702,1767826939019,200.0,0.00013784,2]
[400782703,1767826939485,151.0,0.00013784,2]
[400782704,1767826939611,151.0,0.00013784,2]
[400782705,1767826940181,151.0,0.00013784,2]
[400782706,1767826940788,151.0,0.00013784,2]
[400782707,1767826941424,151.0,0.00013784,2]
[400782708,1767826942064,151.0,0.00013784,2]
[400782709,1767826942105,500.0,0.00013784,2]
[400782710,1767826942662,151.0,0.00013784,2]
[400782711,1767826943682,151.0,0.00013784,2]
[400782712,1767826943966,151.0,0.00013784,2]
[400782713,1767826944636,151.0,0.00013784,2]
[400782714,1767826945306,151.0,0.00013784,2]
[400782715,1767826945930,151.0,0.00013784,2]
[400782716,1767826946540,151.0,0.00013784,2]
[400782717,1767826947152,151.0,0.00013784,2]
[400782718,1767826947788,151.0,0.00013784,2]
[400782719,1767826948420,151.0,0.00013784,2]
[400782720,1767826955611,200.0,0.00013784,2]
[400782721,1767826960736,-335.51105991,0.00013792,2]
[400782722,1767826963381,-297.2,0.00013792,2]
[400782723,1767826964345,151.0,0.00013784,2]
[400782724,1767826964968,151.0,0.00013784,2]
[400782725,1767826965528,-300.18175178,0.00013792,2]
[400782726,1767826965615,151.0,0.00013784,2]
[400782727,1767826966264,151.0,0.00013784,2]
[400782728,1767826966897,151.0,0.00013784,2]
[400782729,1767826966950,-403.8,0.00013792,2]
[400782731,1767826967967,151.0,0.00013784,2]
[400782732,1767826968111,291.4,6.722e-05,2]
[400782733,1767826968157,151.0,0.00013784,2]
[400782734,1767826968352,291.4,7.062e-05,2]
[400782735,1767826968578,291.4,7.402e-05,2]
[400782736,1767826968785,151.0,0.00013784,2]
[400782737,1767826968828,291.4,7.742e-05,2]
[400782738,1767826968884,-282.95311982,0.00013792,2]
[400782739,1767826969009,291.4,8.082e-05,2]
[400782740,1767826969216,291.4,8.422e-05,2]
[400782741,1767826969413,151.0,0.00013784,2]
[400782742,1767826969463,291.4,8.762e-05,2]
[400782743,1767826969651,291.4,9.102e-05,2]
[400782744,1767826969836,291.4,9.442e-05,2]
[400782745,1767826970027,151.0,0.00013784,2]
[400782746,1767826970070,291.4,9.782e-05,2]
[400782747,1767826970271,291.4,0.00010122,2]
[400782748,1767826971119,291.4,0.00010462,2]
[400782749,1767826971159,151.0,0.00013784,2]
[400782750,1767826971209,291.4,0.00010802,2]
[400782751,1767826971247,-254.0,0.00013792,2]
[400782752,1767826971290,291.4,0.00011142,2]
[400782753,1767826971369,291.4,0.00011482,2]
[400782754,1767826971571,291.4,0.00011822,2]
[400782755,1767826971770,291.4,0.00012162,2]
[400782756,1767826971980,291.4,0.00012502,2]
[400782757,1767826972191,291.4,0.00012841,2]
[400782758,1767826972606,291.4,0.00013181,2]
[400782759,1767826973314,-273.46753075,0.00013792,2]
[400782760,1767826974726,-931.94522797,0.00013792,2]
[400782761,1767826976118,-541.1955794,0.00013792,2]
[400782762,1767826978709,-639.53143501,0.00013792,2]
[400782763,1767826981919,-500.0,0.00013792,2]
[400782764,1767826982000,150.0,0.00013791,2]
[400782765,1767826990219,-350.0,0.00013792,2]
[400782766,1767826994128,-289.26554985,0.00013792,2]
[400782767,1767827028528,802.01,0.00013174,2]
[400782768,1767827028556,10000.01,0.00013174,2]
[400782769,1767827028583,128.73,0.00013174,2]
[400782770,1767827040566,160.69763796,0.00013791,2]
[400782771,1767827041254,300.0,0.00013791,2]
[400782772,1767827060615,150.0,0.00013791,2]
[400782773,1767827085103,733.14,0.00013115,2]
[400782774,1767827092610,150.0,0.00013791,2]
[400782775,1767827101316,300.0,0.00013791,2]
[400782776,1767827101359,1200.0,0.00013791,2]
[400782777,1767827102516,300.0,0.00013791,2]
[400782778,1767827107642,200.0,0.00013792,2]
[400782779,1767827114888,375.45302655,0.00013692,2]
[400782780,1767827125402,150.0,0.00013791,2]
[400782781,1767827136368,5851.98933549,0.00013692,2]
[400782782,1767827136396,1127.82446451,0.00013692,2]
[400782783,1767827136839,328.52139817,0.00013692,2]
[400782784,1767827156914,150.0,0.00013791,2]
[400782785,1767827159029,151.0,0.00013792,2]
[400782786,1767827159102,176.73887618,0.00013792,2]
[400782787,1767827159952,151.0,0.00013792,2]
[400782788,1767827161880,150.0,0.00013791,2]
[400782789,1767827162821,2972.85,0.00013091,2]
[400782790,1767827173832,4792.07526114,0.00013692,2]
[400782791,1767827173864,7846.80445181,0.00013692,2]
[400782792,1767827191523,2153.20554819,0.00013066,2]
[400782793,1767827191553,1066.30445181,0.00013066,2]
[400782794,1767827210577,8933.70554819,0.00013692,2]
[400782795,1767827210606,6742.5613885,0.00013692,2]
[400782796,1767827221337,300.0,0.00013791,2]
[400782797,1767827227582,151.0,0.00013784,2]
[400782798,1767827228210,151.0,0.00013784,2]
[400782799,1767827228820,151.0,0.00013784,2]
[400782800,1767827229047,200.0,0.00013784,2]
[400782801,1767827229434,151.0,0.00013784,2]
[400782802,1767827230052,151.0,0.00013784,2]
[400782803,1767827230687,151.0,0.00013784,2]
[400782804,1767827231289,151.0,0.00013784,2]
[400782805,1767827231603,151.0,0.00013784,2]
[400782806,1767827231938,151.0,0.00013784,2]
[400782807,1767827232452,151.0,0.00013784,2]
[400782808,1767827232562,151.0,0.00013784,2]
[400782809,1767827233064,151.0,0.00013784,2]
[400782810,1767827233189,151.0,0.00013784,2]
[400782811,1767827233703,151.0,0.00013784,2]
[400782812,1767827233816,151.0,0.00013784,2]
[400782813,1767827234385,151.0,0.00013784,2]
[400782814,1767827234761,151.0,0.00013784,2]
[400782815,1767827235630,151.0,0.00013784,2]
[400782816,1767827235674,39.4486115,0.00013784,2]
[400782817,1767827235703,111.5513885,0.00013784,2]
[400782818,1767827235804,151.0,0.00013784,2]
[400782819,1767827235847,151.0,0.00013784,2]
[400782820,1767827236143,151.0,0.00013784,2]
[400782821,1767827236185,182.38228155,0.00013791,2]
[400782822,1767827236284,151.0,0.00013784,2]
[400782823,1767827236825,151.0,0.00013784,2]
[400782824,1767827236875,200.0,0.00013784,2]
[400782825,1767827236919,151.0,0.00013784,2]
[400782826,1767827237512,151.0,0.00013784,2]
[400782827,1767827237588,151.0,0.00013784,2]
[400782828,1767827238107,151.0,0.00013784,2]
[400782829,1767827238150,151.0,0.00013784,2]
[400782830,1767827238754,151.0,0.00013784,2]
[400782831,1767827239363,173.97408759,0.00013784,2]
[400782832,1767827240202,500.0,0.00013784,2]
[400782833,1767827242462,212.92203508,0.00013784,2]
[400782834,1767827251981,1000.0,0.00013169,2]
[400782835,1767827265541,166.66,0.00013566,2]
[400782842,1767827310553,308.34284089,0.00013692,2]
[400782843,1767827324076,308.34284089,0.00013692,2]
[400782844,1767827341944,150.0,0.00013791,2]
[400782845,1767827348308,300.0,0.00013791,2]
[400782916,1767827362792,1000.0,0.00013791,2]
[400782917,1767827369053,300.0,0.00015,30]
[400782918,1767827369275,151.0,0.00013792,2]
[400782919,1767827370367,228.21662853,0.00013792,2]
[400782920,1767827389258,3345.61789697,0.00013692,2]
[400782921,1767827389287,10000.01,0.00013692,2]
[400782922,1767827389322,10000.01,0.00013692,2]
[400782923,1767827389354,10000.01,0.00013692,2]
[400782924,1767827389386,10000.01,0.00013692,2]
[400782925,1767827389417,10000.01,0.00013692,2]
[400782926,1767827389455,10000.01,0.00013692,2]
[400782927,1767827389493,10000.01,0.00013692,2]
[400782928,1767827389525,10000.01,0.00013692,2]
[400782929,1767827389558,10000.01,0.00013692,2]
[400782930,1767827389592,6446.24486203,0.00013692,2]
[400782931,1767827389623,981.03147857,0.00013692,2]
[400782932,1767827389652,1121.7945331,0.00013692,2]
[400782933,1767827389684,264.06319968,0.00013692,2]
[400782934,1767827389714,611.91492467,0.00013692,2]
[400782935,1767827389744,1213.20637445,0.00013692,2]
[400782936,1767827389772,525.51391371,0.00013692,2]
[400782937,1767827389801,287.32235253,0.00013692,2]
[400782938,1767827389830,406.11784595,0.00013692,2]
[400782939,1767827390076,-210.73445015,0.00013692,2]
[400782940,1767827401071,-499.0,0.00013692,2]
[400782941,1767827402607,-300.0,0.00013691,2]
[400782942,1767827402645,-300.0,0.00013691,2]
[400782943,1767827402683,-1200.0,0.00013691,2]
[400782944,1767827403320,-3466.91711097,0.00013692,2]
[400782945,1767827403463,-10000.01,0.00013692,2]
[400782946,1767827403616,-10000.01,0.00013692,2]
[400782947,1767827403777,-10000.01,0.00013692,2]
[400782948,1767827403931,-10000.01,0.00013692,2]
[400782949,1767827404070,-10000.01,0.00013692,2]
[400782950,1767827404213,-10000.01,0.00013692,2]
[400782951,1767827404383,-10000.01,0.00013692,2]
[400782952,1767827404599,-10000.01,0.00013692,2]
[400782953,1767827404753,-10000.01,0.00013692,2]
[400782954,1767827404876,-10000.01,0.00013692,2]
[400782956,1767827412809,-500.0,0.00013692,2]
[400782978,1767827432637,-407.74984699,0.00013692,2]
[400782979,1767827432649,-38668.48693892,0.00013692,2]
[400782980,1767827432661,-4721.58962428,0.00013692,2]
[400782981,1767827432715,500.0,0.00013691,2]
[400782982,1767827432756,422.63071895,0.00013691,2]
[400782983,1767827432776,-156368.92941038,0.00013692,2]
[400782984,1767827432788,-27399.5329299,0.00013692,2]
[400782985,1767827432799,-13745.59794369,0.00013692,2]
[400782986,1767827432810,-931.89,0.00013692,2]
[400782987,1767827432821,-273.483,0.00013692,2]
[400782988,1767827432834,-461.17361602,0.00013692,2]
[400782989,1767827432845,-2430.08348929,0.00013692,2]
[400782990,1767827432892,380.62235784,0.00013691,2]
[400782991,1767827432970,347.67852301,0.00013691,2]
[400782992,1767827432999,-391.92938006,0.00013692,2]
[400782993,1767827433065,500.0,0.00013691,2]
[400782994,1767827433117,279.54663396,0.00013691,2]
[400783000,1767827438597,-17697.09808657,0.00013692,2]
[400783001,1767827438609,-19365.06113403,0.00013692,2]
[400783003,1767827438636,-3434.61973857,0.00013692,2]
[400783005,1767827438648,-4100.45866908,0.00013692,2]
[400783009,1767827438682,-499722.64724944,0.00013692,2]
[400783010,1767827438691,-497.17735701,0.00013792,2]
[400783012,1767827438701,-497.17735701,0.00013792,2]
[400783014,1767827438711,-497.17735701,0.00013792,2]
[400783016,1767827438720,-195.0,0.00013792,2]
[400783018,1767827438729,-300.0,0.00013792,2]
[400783020,1767827438739,-300.0,0.00013792,2]
[400783022,1767827438748,-2500.0,0.00013792,2]
[400783023,1767827438757,-250.0,0.00013792,2]
[400783025,1767827438767,-384.10059426,0.00013793,2]
[400783027,1767827438776,-195.0,0.00013794,2]
[400783029,1767827438786,-300.0,0.00013794,2]
[400783031,1767827438795,-323.96407096,0.00013799,2]
[400783033,1767827438804,-1661.37527415,0.00013799,2]
[400783035,1767827438813,-183.51,0.00013806,2]
[400783037,1767827438823,-1617.63,0.00013811,2]
[400783039,1767827438833,-2095.06,0.00013811,2]
[400783041,1767827438842,-21908.06,0.00013811,2]
[400783042,1767827438852,-299.99,0.00013811,2]
[400783044,1767827438861,-3174.75,0.00013811,2]
[400783046,1767827438870,-150.99,0.00013811,2]
[400783048,1767827438879,-17534.98,0.00013811,2]
[400783050,1767827438889,-150.99,0.00013811,2]
[400783052,1767827438898,-1465.39,0.00013811,2]
[400783054,1767827438907,-9999.99,0.00013811,2]
[400783055,1767827438916,-1178.51,0.00013811,2]
[400783057,1767827438926,-42324.09,0.00013811,2]
[400783059,1767827438936,-3687.07,0.00013811,2]
[400783061,1767827438945,-4539.04,0.00013811,2]
[400783063,1767827438954,-9999.99,0.00013811,2]
[400783065,1767827438963,-9999.99,0.00013811,2]
[400783066,1767827438972,-57097.28,0.00013811,2]
[400783068,1767827438981,-423.57,0.00013848,2]
[400783070,1767827438991,-1000.0,0.00013887,2]
[400783072,1767827439001,-2104.0546,0.00013887,2]
[400783074,1767827439010,-200.0,0.0001393,2]
[400783076,1767827439020,-500.0,0.00013986,2]
[400783078,1767827439030,-615.06492354,0.00013986,2]
[400783080,1767827439040,-500.0,0.00013986,2]
[400783081,1767827439049,-500.0,0.00013986,2]
[400783083,1767827439059,-500.0,0.00013986,2]
[400783085,1767827439068,-500.0,0.00013986,2]
[400783087,1767827439077,-500.0,0.00013986,2]
[400783089,1767827439087,-500.0,0.00013986,2]
[400783091,1767827439096,-500.0,0.00013986,2]
[400783093,1767827439106,-500.0,0.00013986,2]
[400783095,1767827439115,-500.0,0.00013987,2]
[400783096,1767827439125,-500.0,0.00013987,2]
[400783098,1767827439135,-500.0,0.00013987,2]
[400783100,1767827439144,-262.00155402,0.00013987,2]
[400783102,1767827439153,-500.0,0.00013987,2]
[400783104,1767827439163,-500.0,0.00013987,2]
[400783106,1767827439172,-500.0,0.00013987,2]
[400783108,1767827439181,-500.0,0.00013987,2]
[400783110,1767827439190,-500.0,0.00013987,2]
[400783111,1767827439199,-500.0,0.00013994,2]
[400783113,1767827439209,-500.0,0.00013994,2]
[400783115,1767827439220,-500.0,0.00013994,2]
[400783117,1767827439229,-500.0,0.00013994,2]
[400783119,1767827439239,-500.0,0.00013994,2]
[400783121,1767827439248,-500.0,0.00013994,2]
[400783123,1767827439258,-534.92861577,0.00013994,2]
[400783125,1767827439267,-500.0,0.00013994,2]
[400783127,1767827439277,-500.0,0.00013994,2]
[400783129,1767827439286,-500.0,0.00013994,2]
[400783131,1767827439295,-500.0,0.00013994,2]
[400783132,1767827439305,-500.0,0.00013994,2]
[400783134,1767827439315,-569.18,0.00013994,2]
[400783136,1767827439324,-569.18,0.00013994,2]
[400783138,1767827439334,-569.18,0.00013994,2]
[400783140,1767827439343,-500.0,0.00013994,2]
[400783142,1767827439353,-569.18,0.00013994,2]
[400783144,1767827439362,-500.0,0.00013994,2]
[400783146,1767827439372,-500.0,0.00013994,2]
[400783147,1767827439381,-500.0,0.00013994,2]
[400783149,1767827439391,-500.0,0.00013994,2]
[400783151,1767827439401,-300.32189939,0.00013994,2]
[400783153,1767827439410,-500.0,0.00013994,2]
[400783155,1767827439420,-500.0,0.00013994,2]
[400783157,1767827439430,-500.0,0.00013994,2]
[400783159,1767827439440,-500.0,0.00013994,2]
[400783161,1767827439449,-500.0,0.00013994,2]
[400783162,1767827439459,-500.0,0.00013994,2]
[400783163,1767827439468,-500.0,0.00013994,2]
[400783164,1767827439478,-500.0,0.00013994,2]
[400783165,1767827439489,-500.0,0.00013994,2]
[400783166,1767827439498,-500.0,0.00013994,2]
[400783167,1767827439508,-283.51547018,0.00013994,2]
[400783168,1767827439519,-500.0,0.00013994,2]
[400783169,1767827439528,-500.0,0.00013994,2]
[400783170,1767827439538,-500.0,0.00013994,2]
[400783171,1767827439547,-500.0,0.00013994,2]
[400783172,1767827439557,-500.0,0.00013994,2]
[400783173,1767827439567,-500.0,0.00013994,2]
[400783174,1767827439577,-500.0,0.00013994,2]
[400783175,1767827439587,-500.0,0.00013994,2]
[400783176,1767827439599,-500.0,0.00013994,2]
[400783177,1767827439610,-500.0,0.00013994,2]
[400783178,1767827439620,-500.0,0.00013994,2]
[400783179,1767827439632,-500.0,0.00013994,2]